bitfinex/quotes_BTCUSD_20260117
["timestamp","ask_amount","ask_price","bid_price","bid_amount"]
[1768630153660,0.01050409,95201.0,95197.0,0.01072693]
[1768630154606,0.0105042,95200.0,95197.0,0.0002224]
[1768630155685,0.0630254,95200.0,95197.0,0.0002224]
[1768630156346,0.06222472,95200.0,95197.0,0.0002224]
[1768630156699,0.05252187,95199.0,95197.0,0.00017707]
[1768630157091,0.06222495,95200.0,95197.0,0.00017707]
[1768630157384,0.00970352,95200.0,95197.0,0.00017707]
[1768630159918,0.00970352,95200.0,95197.0,0.00013174]
[1768630160215,0.01050409,95201.0,95197.0,0.00013174]
[1768630160758,0.01050387,95203.0,95198.0,0.01050442]
[1768630162007,0.01050398,95202.0,95198.0,0.01050442]
[1768630162336,0.01050398,95202.0,95198.0,0.00424299]
[1768630163302,0.01050398,95202.0,95197.0,0.01063627]
[1768630163634,0.06302458,95201.0,95197.0,0.00013174]
[1768630165389,0.0105042,95200.0,95197.0,0.00013174]
[1768630167238,0.0105042,95200.0,95197.0,8.641e-05]
[1768630168071,0.0630252,95200.0,95197.0,8.641e-05]
[1768630168997,0.05747887,95200.0,95197.0,8.641e-05]
[1768630169447,0.10999996,95200.0,95197.0,8.641e-05]
[1768630169872,0.05252196,95199.0,95197.0,8.641e-05]
[1768630170065,0.05252211,95198.0,95197.0,8.641e-05]
[1768630170660,0.0105042,95200.0,95197.0,8.641e-05]
[1768630171809,0.06302525,95200.0,95197.0,8.641e-05]
[1768630172716,0.0105042,95200.0,95197.0,8.641e-05]
[1768630174447,0.01050409,95201.0,95197.0,0.01059094]
[1768630176729,0.01050398,95202.0,95197.0,0.01059094]
[1768630177555,0.01050398,95202.0,95198.0,0.01050442]
[1768630181706,0.01050376,95204.0,95199.0,0.01050431]
[1768630182188,0.01050387,95203.0,95199.0,0.01050431]
[1768630183331,0.01050376,95204.0,95200.0,0.0105042]
[1768630184510,0.06302132,95206.0,95201.0,0.01050409]
[1768630184731,0.01050365,95205.0,95201.0,0.01050409]
[1768630185505,0.01050387,95203.0,95199.0,0.01050431]
[1768630186986,0.01050409,95201.0,95198.0,0.03150884]
[1768630187182,0.01050409,95201.0,95198.0,0.02091812]
[1768630187635,0.05252128,95200.0,95198.0,0.02091812]
[1768630188033,0.05252156,95199.0,95198.0,0.02091812]
[1768630190124,0.05252112,95200.0,95198.0,0.02091812]
[1768630195963,0.01050409,95201.0,95198.0,0.02091812]
[1768630196185,0.01050387,95203.0,95199.0,0.01050431]
[1768630196635,0.01050398,95202.0,95198.0,0.03142254]
[1768630202055,0.06302498,95201.0,95198.0,0.02091812]
[1768630202205,0.01050409,95201.0,95198.0,0.02091812]
[1768630202372,0.0525215,95200.0,95198.0,0.02091812]
[1768630202567,0.0630257,95200.0,95197.0,8.641e-05]
[1768630203225,0.05252156,95199.0,95197.0,8.641e-05]
[1768630203454,0.0630253,95200.0,95197.0,8.641e-05]
[1768630204034,0.05252156,95199.0,95197.0,8.641e-05]
[1768630204580,0.05252211,95198.0,95197.0,8.641e-05]
[1768630204771,0.0105042,95200.0,95197.0,8.641e-05]
[1768630205781,0.06302528,95200.0,95197.0,8.641e-05]
[1768630205986,0.0105042,95200.0,95197.0,8.641e-05]
[1768630206454,0.06302526,95200.0,95197.0,8.641e-05]
[1768630206753,0.05252162,95199.0,95197.0,8.641e-05]
[1768630206960,0.0105042,95200.0,95197.0,8.641e-05]
[1768630207142,0.06302531,95200.0,95197.0,8.641e-05]
[1768630210967,0.0105042,95200.0,95197.0,8.641e-05]
[1768630213135,0.06302524,95200.0,95197.0,8.641e-05]
[1768630213715,0.0105042,95200.0,95197.0,8.641e-05]
[1768630217194,0.06302545,95200.0,95197.0,8.641e-05]
[1768630217613,0.01050409,95201.0,95197.0,8.641e-05]
[1768630219067,0.01050398,95202.0,95198.0,0.01050442]
[1768630219471,0.01050409,95201.0,95197.0,0.01059094]
[1768630219744,0.01050398,95202.0,95198.0,0.01050442]
[1768630219978,0.01050387,95203.0,95199.0,0.01050431]
[1768630222615,0.01050398,95202.0,95198.0,0.01050442]
[1768630223047,0.01050398,95202.0,95197.0,0.01059094]
[1768630224936,0.01050409,95201.0,95197.0,4.108e-05]
[1768630225415,0.01050409,95201.0,95197.0,0.01054561]
[1768630225641,0.01050398,95202.0,95198.0,0.01050442]
[1768630226091,0.01050398,95202.0,95198.0,0.01045909]
[1768630226316,0.01050409,95201.0,95197.0,0.01054561]
[1768630232222,0.01050398,95202.0,95198.0,0.01050442]
[1768630233500,0.01050387,95203.0,95199.0,0.01050431]
[1768630236630,0.01050398,95202.0,95198.0,0.01050442]
[1768630237031,0.01050409,95201.0,95197.0,0.01054561]
[1768630239390,0.01050409,95201.0,95197.0,0.01050028]
[1768630240973,0.01050398,95202.0,95198.0,0.01050442]
[1768630241399,0.01050409,95201.0,95197.0,0.01050028]
[1768630242636,0.01050409,95201.0,95197.0,0.00955783]
[1768630246654,0.01050398,95202.0,95198.0,0.01050442]
[1768630247091,0.01050409,95201.0,95197.0,0.00955783]
[1768630247301,0.0105042,95200.0,95197.0,0.00955783]
[1768630247446,0.01050409,95201.0,95197.0,0.00955783]
[1768630247846,0.0105042,95200.0,95196.0,0.01050464]
[1768630251998,0.0105042,95200.0,95195.0,0.01050475]
[1768630252209,0.01050431,95199.0,95195.0,0.01050475]
[1768630252353,0.0105042,95200.0,95196.0,0.01050464]
[1768630252812,0.01050409,95201.0,95197.0,0.01050453]
[1768630253039,0.0105042,95200.0,95196.0,0.01050464]
[1768630258106,0.01050431,95199.0,95195.0,0.01050475]
[1768630258672,0.01050453,95197.0,95193.0,0.02100895]
[1768630259084,0.01050431,95199.0,95194.0,0.01050486]
[1768630260321,0.01050431,95199.0,95195.0,0.01050475]
[1768630261857,0.01050442,95198.0,95194.0,0.01050486]
[1768630262361,0.0105042,95200.0,95195.0,0.01050475]
[1768630262480,0.0105042,95200.0,95195.0,0.06302811]
[1768630263253,0.0105042,95200.0,95196.0,0.01050464]
[1768630263445,0.0105042,95200.0,95196.0,0.01045932]
[1768630264005,0.01050409,95201.0,95197.0,0.01050453]
[1768630266617,0.01050409,95201.0,95196.0,0.01045932]
[1768630267288,0.0105042,95200.0,95196.0,0.01045932]
[1768630268760,0.0105042,95200.0,95196.0,0.010414]
[1768630270627,0.01050409,95201.0,95197.0,0.01050453]
[1768630272791,0.0105042,95200.0,95196.0,0.010414]
[1768630275855,0.0105042,95200.0,95196.0,0.01036868]
[1768630276587,0.01050409,95201.0,95197.0,0.01050453]
[1768630279901,0.0105042,95200.0,95196.0,0.01036868]
[1768630280526,0.01050409,95201.0,95197.0,0.01050453]
[1768630281994,0.01050409,95201.0,95196.0,0.01050464]
[1768630282202,0.05252006,95202.0,95197.0,0.01050453]
[1768630282411,0.05251958,95203.0,95197.0,0.01050453]
[1768630283021,0.01050409,95201.0,95197.0,0.01046003]
[1768630283228,0.003109,95200.0,95197.0,0.01046003]
[1768630287797,0.003109,95200.0,95197.0,0.01041471]
[1768630290697,0.003109,95200.0,95197.0,0.01036939]
[1768630293049,0.003109,95200.0,95197.0,0.0628919]
[1768630293949,0.00119104,95200.0,95197.0,0.0628919]
[1768630294470,0.01169524,95200.0,95196.0,0.01050464]
[1768630294698,0.00119104,95200.0,95197.0,0.01050453]
[1768630297163,0.00076428,95200.0,95197.0,0.01050453]
[1768630297569,0.00036266,95200.0,95197.0,0.01050453]
[1768630297780,0.01046583,95202.0,95197.0,0.01050453]
[1768630300016,0.06298589,95202.0,95197.0,0.01050453]
[1768630302327,0.01050409,95201.0,95197.0,0.01050453]
[1768630302561,0.06302279,95204.0,95198.0,0.01050442]
[1768630302755,0.01050376,95204.0,95198.0,0.06302644]
[1768630303042,0.01050387,95203.0,95199.0,0.01050431]
[1768630303266,0.0004008,95202.0,95199.0,0.01050431]
[1768630303468,0.00543466,95203.0,95199.0,0.01050431]
[1768630303888,0.01050376,95204.0,95200.0,0.0105042]
[1768630304094,0.01050376,95204.0,95199.0,0.01050431]
[1768630304095,0.01050387,95203.0,95199.0,0.01050431]
[1768630304297,0.01050387,95203.0,95198.0,0.01050442]
[1768630304919,0.01050387,95203.0,95199.0,0.01050431]
[1768630309895,0.01050387,95203.0,95199.0,0.01042573]
[1768630310221,0.01050376,95204.0,95200.0,0.0105042]
[1768630310582,0.01010133,95204.0,95200.0,0.0105042]
[1768630311309,0.01050387,95203.0,95199.0,0.01042573]
[1768630312217,0.01010133,95204.0,95200.0,0.0105042]
[1768630314900,0.01050365,95205.0,95201.0,0.01050409]
[1768630315701,0.12728,95206.0,95202.0,0.01050398]
[1768630317277,0.13778353,95206.0,95202.0,0.01050398]
[1768630317918,0.12728,95206.0,95203.0,0.01050387]
[1768630318125,0.12718933,95206.0,95203.0,0.01050387]
[1768630318329,0.12718933,95206.0,95202.0,0.01050398]
[1768630318330,0.13769286,95206.0,95202.0,0.01050398]
[1768630320363,0.12718933,95206.0,95203.0,0.01050387]
[1768630320570,0.12709865,95206.0,95203.0,0.06302314]
[1768630320975,0.13760218,95206.0,95202.0,0.01050398]
[1768630321271,0.12709865,95206.0,95203.0,0.01050387]
[1768630321471,0.12709865,95206.0,95192.0,0.04552861]
[1768630321628,0.12709865,95206.0,95196.0,0.24159949]
[1768630321832,0.13760218,95206.0,95196.0,0.03150884]
[1768630322053,0.13760218,95206.0,95200.0,0.0525206]
[1768630322261,0.13760218,95206.0,95201.0,0.05252029]
[1768630322689,0.13760218,95206.0,95201.0,0.05244171]
[1768630323243,0.13760218,95206.0,95202.0,0.01050398]
[1768630325675,0.12709865,95206.0,95202.0,0.01050398]
[1768630327226,0.13760218,95206.0,95202.0,0.01050398]
[1768630327431,0.12709865,95206.0,95203.0,0.01050387]
[1768630329968,0.13760218,95206.0,95202.0,0.01050398]
[1768630331110,0.12709865,95206.0,95203.0,0.01050387]
[1768630331316,0.13760218,95206.0,95202.0,0.01050398]
[1768630333160,0.12709865,95206.0,95203.0,0.01050387]
[1768630334443,0.13760218,95206.0,95202.0,0.01050398]
[1768630334889,0.13760218,95206.0,95201.0,0.01050409]
[1768630334890,0.01050365,95205.0,95201.0,0.01050409]
[1768630335549,0.13760218,95206.0,95201.0,0.01050409]
[1768630335776,0.13760218,95206.0,95197.0,0.02100873]
[1768630336904,0.19012005,95206.0,95199.0,0.05252112]
[1768630337431,0.01050376,95204.0,95200.0,0.0105042]
[1768630339144,0.01050365,95205.0,95201.0,0.01050409]
[1768630341393,0.13760218,95206.0,95202.0,0.01050398]
[1768630341603,0.01050365,95205.0,95200.0,0.0105042]
[1768630343610,0.01050376,95204.0,95200.0,0.0105042]
[1768630345016,0.01050365,95205.0,95201.0,0.01050409]
[1768630345218,0.01050376,95204.0,95200.0,0.0105042]
[1768630346163,0.01050365,95205.0,95201.0,0.01050409]
[1768630349434,0.13760218,95206.0,95202.0,0.01050398]
[1768630350214,0.12709865,95206.0,95201.0,0.01050409]
[1768630350419,0.12709865,95206.0,95202.0,0.01050398]
[1768630350698,0.13760218,95206.0,95202.0,0.01050398]
[1768630351069,0.01050365,95205.0,95200.0,0.0105042]
[1768630352373,0.13760218,95206.0,95201.0,0.01050409]
[1768630353397,0.13760218,95206.0,95202.0,0.01050398]
[1768630353605,0.01050365,95205.0,95201.0,0.01050409]
[1768630354043,0.01050365,95205.0,95201.0,0.01030758]
[1768630355098,0.01050376,95204.0,95199.0,0.01050431]
[1768630355325,0.01050365,95205.0,95200.0,0.0105042]
[1768630356125,0.01050365,95205.0,95201.0,0.01050409]
[1768630358512,0.13760218,95206.0,95202.0,0.01050398]
[1768630359824,0.01050365,95205.0,95200.0,0.0105042]
[1768630360963,0.01050376,95204.0,95200.0,0.0105042]
[1768630371329,0.01050376,95204.0,95198.0,0.03150884]
[1768630372354,0.01050387,95203.0,95198.0,0.04201326]
[1768630372553,0.01050398,95202.0,95198.0,0.04201326]
[1768630372814,0.03676761,95203.0,95198.0,0.04201326]
[1768630373020,0.03676761,95203.0,95198.0,0.03150884]
[1768630373226,0.03676761,95203.0,95197.0,0.01050453]
[1768630373434,0.03676761,95203.0,95197.0,0.04201337]
[1768630374086,0.03676761,95203.0,95197.0,0.01050453]
[1768630374319,0.01050409,95201.0,95198.0,0.03150884]
[1768630374525,0.00840448,95201.0,95198.0,0.03150884]
[1768630374932,0.01050398,95202.0,95198.0,0.03150884]
[1768630375342,0.01050409,95201.0,95198.0,0.03150884]
[1768630376421,0.01050398,95202.0,95198.0,0.04201326]
[1768630376869,0.05596847,95202.0,95198.0,0.01050442]
[1768630377076,0.01050409,95201.0,95197.0,0.01050453]
[1768630377282,0.01050409,95201.0,95199.0,0.03150884]
[1768630378450,0.0049238,95201.0,95199.0,0.03150884]
[1768630379369,0.05596847,95202.0,95199.0,0.03150884]
[1768630380823,0.01050398,95202.0,95199.0,0.03150884]
[1768630382436,0.05252095,95201.0,95199.0,0.03150884]
[1768630383392,0.05596847,95202.0,95188.0,0.01066362]
[1768630383393,0.01050486,95194.0,95188.0,0.01066362]
[1768630383603,0.01050486,95194.0,95191.0,0.03150884]
[1768630383804,0.01050486,95194.0,95186.0,0.05252845]
[1768630383805,0.01050629,95181.0,95175.0,0.04971099]
[1768630384008,0.01050629,95181.0,95174.0,0.01050707]
[1768630384213,0.06303825,95181.0,95177.0,0.01050486]
[1768630384372,0.06303825,95181.0,95177.0,0.01050674]
[1768630384373,0.01050629,95181.0,95177.0,0.01050674]
[1768630384587,0.01050629,95181.0,95175.0,0.05253478]
[1768630384588,0.01050629,95181.0,95178.0,0.00063178]
[1768630384770,0.01050618,95182.0,95178.0,0.0111384]
[1768630385167,0.01050629,95181.0,95177.0,0.01050674]
[1768630385348,0.01050629,95181.0,95177.0,0.0105541]
[1768630387142,0.13778618,95182.0,95178.0,0.01050662]
[1768630387693,0.01050629,95181.0,95177.0,0.0105541]
[1768630388241,0.0105064,95180.0,95177.0,4.736e-05]
[1768630390656,0.13778618,95182.0,95178.0,0.01050662]
[1768630391108,0.12728,95182.0,95179.0,0.05253216]
[1768630391330,0.12728,95182.0,95179.0,0.06303867]
[1768630391541,0.12728,95182.0,95180.0,0.0525317]
[1768630393094,0.12728,95182.0,95179.0,0.063039]
[1768630393277,0.12728,95182.0,95180.0,0.05253199]
[1768630396244,0.12728,95182.0,95179.0,0.01050651]
[1768630397280,0.01050629,95181.0,95177.0,4.736e-05]
[1768630398419,0.01050629,95181.0,95177.0,0.0105541]
[1768630401237,0.01050629,95181.0,95177.0,4.736e-05]
[1768630402238,0.01050629,95181.0,95177.0,0.0105541]
[1768630406260,0.13778618,95182.0,95178.0,0.01050662]
[1768630406476,0.12728,95182.0,95178.0,0.01050662]
[1768630406690,0.13778618,95182.0,95178.0,0.01050662]
[1768630406909,0.01050629,95181.0,95177.0,0.0105541]
[1768630411041,0.13778618,95182.0,95178.0,0.01050662]
[1768630411670,0.01050629,95181.0,95177.0,0.0105541]
[1768630412301,0.12728,95182.0,95178.0,0.01050662]
[1768630413176,0.13778618,95182.0,95178.0,0.01050662]
[1768630415366,0.0105064,95180.0,95172.0,0.01050729]
[1768630415595,0.00650662,95178.0,95173.0,0.01050718]
[1768630415837,0.01050674,95177.0,95173.0,0.01050718]
[1768630416058,0.00650662,95178.0,95173.0,0.01050718]
[1768630416305,0.01050651,95179.0,95175.0,0.01050696]
[1768630416551,0.01050662,95178.0,95174.0,0.01050707]
[1768630417443,0.0105064,95180.0,95176.0,0.01050685]
[1768630418853,0.01050629,95181.0,95177.0,0.01050674]
[1768630419711,0.01050651,95179.0,95175.0,0.01050696]
[1768630419913,0.01050629,95181.0,95176.0,0.01050685]
[1768630420369,0.01050629,95181.0,95177.0,0.01050674]
[1768630420800,0.01050629,95181.0,95176.0,0.01050685]
[1768630421024,0.0105064,95180.0,95176.0,0.01050685]
[1768630421667,0.02101336,95181.0,95174.0,0.01050707]
[1768630421882,0.01050629,95181.0,95174.0,0.01050707]
[1768630422719,0.01050629,95181.0,95175.0,0.05253432]
[1768630422929,0.01050629,95181.0,95175.0,0.0525348]
[1768630423269,0.01050629,95181.0,95177.0,0.01050674]
[1768630425745,0.01050629,95181.0,95176.0,0.01050685]
[1768630425746,0.0105064,95180.0,95176.0,0.01050685]
[1768630425996,0.01050629,95181.0,95177.0,0.01050674]
[1768630426386,0.14829369,95182.0,95178.0,0.01050662]
[1768630426927,0.01050629,95181.0,95177.0,0.01050674]
[1768630427664,0.12728,95182.0,95178.0,0.01050662]
[1768630428405,0.12728,95182.0,95179.0,0.01050651]
[1768630429010,0.12728,95182.0,95178.0,0.01050662]
[1768630429212,0.12728,95182.0,95178.0,0.06303963]
[1768630429414,0.12728,95182.0,95179.0,0.01050651]
[1768630430724,0.12728,95182.0,95178.0,0.01050662]
[1768630430929,0.12728,95182.0,95177.0,0.06303997]
[1768630431135,0.042,95197.0,95185.0,0.06303475]
[1768630431136,0.12728,95188.0,95185.0,0.06303475]
[1768630431360,0.12728,95188.0,95185.0,0.01050585]
[1768630431765,0.12728,95190.0,95188.0,0.01050552]
[1768630432173,0.1377853,95190.0,95186.0,0.01050574]
[1768630432398,0.12728,95190.0,95186.0,0.11018165]
[1768630433133,0.12728,95190.0,95187.0,0.05252798]
[1768630433337,0.12728,95190.0,95187.0,0.06303361]
[1768630433705,0.12728,95190.0,95187.0,0.01050563]
[1768630433908,0.12728,95190.0,95187.0,0.06303371]
[1768630434632,0.12728,95190.0,95187.0,0.01050563]
[1768630434840,0.12728,95190.0,95187.0,0.0630337]
[1768630435752,0.12728,95190.0,95187.0,0.01050563]
[1768630435952,0.12728,95190.0,95187.0,0.06303368]
[1768630436612,0.12728,95190.0,95187.0,0.01050563]
[1768630440290,0.1377853,95190.0,95186.0,0.01050574]
[1768630441565,0.1377853,95190.0,95184.0,0.01050596]
[1768630441566,0.01050541,95189.0,95184.0,0.01050596]
[1768630441773,0.1377853,95190.0,95186.0,0.01050574]
[1768630443058,0.01050541,95189.0,95185.0,0.01050585]
[1768630443485,0.1377853,95190.0,95186.0,0.01050574]
[1768630446574,0.12728,95190.0,95187.0,0.01050563]
[1768630448020,0.12728,95190.0,95186.0,0.01050574]
[1768630448667,0.01050541,95189.0,95185.0,0.01050585]
[1768630449222,0.12728,95190.0,95186.0,0.01050574]
[1768630450579,0.12728,95190.0,95187.0,0.01050563]
[1768630454274,0.12728,95190.0,95184.0,0.06303578]
[1768630454779,0.12728,95190.0,95185.0,0.01050585]
[1768630455192,0.12728,95190.0,95185.0,0.06303503]
[1768630456328,0.12728,95190.0,95186.0,0.01050574]
[1768630457571,0.01050519,95191.0,95187.0,0.01050563]
[1768630457773,0.0105053,95190.0,95185.0,0.05765355]
[1768630458013,0.0105053,95190.0,95185.0,0.01050585]
[1768630458215,0.0105053,95190.0,95186.0,0.01050574]
[1768630458366,0.01050519,95191.0,95186.0,0.01050574]
[1768630458961,0.0105053,95190.0,95186.0,0.01050574]
[1768630459715,0.01050519,95191.0,95187.0,0.01050563]
[1768630460285,0.01050508,95192.0,95188.0,0.01050552]
[1768630462666,0.01050497,95193.0,95189.0,0.01050541]
[1768630464261,0.01050497,95193.0,95189.0,0.01030438]
[1768630469200,0.13778486,95194.0,95190.0,0.0105053]
[1768630469606,0.13778486,95194.0,95186.0,0.01050574]
[1768630469815,0.01050508,95192.0,95188.0,0.01050552]
[1768630470620,0.01050508,95192.0,95188.0,0.01030451]
[1768630471643,0.01050519,95191.0,95186.0,0.0630343]
[1768630471840,0.01050519,95191.0,95187.0,0.01050563]
[1768630472198,0.01050508,95192.0,95188.0,0.01050552]
[1768630473047,0.01050508,95192.0,95188.0,0.01030453]
[1768630473956,0.01050508,95192.0,95187.0,0.01050563]
[1768630474910,0.01050508,95192.0,95187.0,0.01030468]
[1768630475128,0.00810072,95192.0,95187.0,0.01030468]
[1768630475337,0.01050519,95191.0,95187.0,0.01030468]
[1768630475539,0.0105053,95190.0,95185.0,0.06303508]
[1768630475748,0.0105053,95190.0,95184.0,0.01050596]
[1768630475951,0.0105053,95190.0,95185.0,0.01050585]
[1768630476153,0.01050541,95189.0,95185.0,0.01050585]
[1768630476363,0.0105053,95190.0,95186.0,0.01050574]
[1768630476756,0.01050519,95191.0,95187.0,0.01050563]
[1768630477664,0.01050519,95191.0,95187.0,0.0103047]
[1768630478062,0.01050519,95191.0,95187.0,0.01010376]
[1768630478824,0.00810072,95192.0,95188.0,0.01050552]
[1768630487561,0.00810072,95192.0,95187.0,0.06263193]
[1768630488197,0.00810072,95192.0,95187.0,0.01010376]
[1768630488406,0.00810072,95192.0,95188.0,0.01050552]
[1768630491825,0.00810072,95192.0,95187.0,0.01010376]
[1768630492042,0.01050519,95191.0,95187.0,0.01010376]
[1768630493031,0.0105053,95190.0,95185.0,0.01050585]
[1768630493730,0.01050541,95189.0,95184.0,0.01050596]
[1768630493912,0.0105053,95190.0,95185.0,0.06303491]
[1768630494115,0.01050519,95191.0,95187.0,0.01050563]
[1768630494321,0.01050519,95191.0,95186.0,0.01050574]
[1768630494528,0.0105053,95190.0,95186.0,0.01050574]
[1768630495643,0.00810072,95192.0,95187.0,0.01050563]
[1768630497029,0.01050497,95193.0,95188.0,0.01050552]
[1768630498028,0.01050497,95193.0,95189.0,0.01050541]
[1768630499160,0.12728,95194.0,95190.0,0.0105053]
[1768630499371,0.12728,95194.0,95190.0,0.00816595]
[1768630499795,0.01050486,95194.0,95190.0,0.00816595]
[1768630500840,0.01050497,95193.0,95189.0,0.01050541]
[1768630501054,0.01050519,95191.0,95186.0,0.01050574]
[1768630501704,0.01050519,95191.0,95183.0,0.01050607]
[1768630501924,0.05252692,95190.0,95183.0,0.06303603]
[1768630502360,0.01050541,95189.0,95185.0,0.01050585]
[1768630504851,0.0105053,95190.0,95186.0,0.01050574]
[1768630505063,0.01050519,95191.0,95187.0,0.01050563]
[1768630507215,0.06303063,95192.0,95180.0,0.0105064]
[1768630507216,0.01050585,95185.0,95180.0,0.0105064]
[1768630507414,0.01050574,95186.0,95181.0,0.01050629]
[1768630507621,0.01050585,95185.0,95181.0,0.01050629]
[1768630510384,0.01050574,95186.0,95181.0,0.01050629]
[1768630510593,0.01050574,95186.0,95182.0,0.01050618]
[1768630510805,0.01050585,95185.0,95182.0,0.01050618]
[1768630511012,0.01050563,95187.0,95182.0,0.01050618]
[1768630511221,0.01050574,95186.0,95182.0,0.01050618]
[1768630519310,0.01050563,95187.0,95183.0,0.01050607]
[1768630519653,0.0105053,95190.0,95185.0,0.01050585]
[1768630520281,0.01050519,95191.0,95187.0,0.01050563]
[1768630520508,0.01050508,95192.0,95187.0,0.01050563]
[1768630520509,0.01050508,95192.0,95188.0,0.01050552]
[1768630520733,0.01050519,95191.0,95187.0,0.01050563]
[1768630520929,0.01050508,95192.0,95187.0,0.01050563]
[1768630520930,0.01050508,95192.0,95188.0,0.01050552]
[1768630522163,0.01050508,95192.0,95188.0,0.01030456]
[1768630522778,0.13778508,95192.0,95188.0,0.01030456]
[1768630525130,0.0105053,95190.0,95184.0,0.01050596]
[1768630525527,0.01050541,95189.0,95184.0,0.01050596]
[1768630525768,0.01050541,95189.0,95184.0,0.06303569]
[1768630527221,0.01050541,95189.0,95185.0,0.01050585]
[1768630527546,0.01050541,95189.0,95183.0,0.06303603]
[1768630527934,0.01050552,95188.0,95183.0,0.01050607]
[1768630528638,0.01050552,95188.0,95183.0,0.06303607]
[1768630529264,0.01050552,95188.0,95184.0,0.01050596]
[1768630529857,0.01050541,95189.0,95185.0,0.01050585]
[1768630533156,0.01050541,95189.0,95185.0,0.01030489]
[1768630534531,0.01050541,95189.0,95185.0,0.01010394]
[1768630535031,0.01050541,95189.0,95185.0,0.00990297]
[1768630535740,0.01050541,95189.0,95185.0,0.00970201]
[1768630536609,0.0105053,95190.0,95186.0,0.01050574]
[1768630537335,0.01050519,95191.0,95187.0,0.01050563]
[1768630543463,0.06303237,95190.0,95183.0,0.01050607]
[1768630543685,0.0105053,95190.0,95184.0,0.06303529]
[1768630543905,0.0105053,95190.0,95185.0,0.01050585]
[1768630544125,0.0105053,95190.0,95185.0,0.06303503]
[1768630544356,0.01050519,95191.0,95186.0,0.06303443]
[1768630545348,0.01050519,95191.0,95187.0,0.01050563]
[1768630545976,0.01050519,95191.0,95187.0,0.01030468]
[1768630548667,0.01050519,95191.0,95184.0,0.06303558]
[1768630549075,0.05252652,95190.0,95184.0,0.01050596]
[1768630549294,0.0105053,95190.0,95185.0,0.01050585]
[1768630550192,0.0105053,95190.0,95185.0,0.06303507]
[1768630550416,0.0105053,95190.0,95186.0,0.01050574]
[1768630551941,0.06303184,95190.0,95185.0,0.01050585]
[1768630552087,0.0105053,95190.0,95185.0,0.01050585]
[1768630552298,0.0105053,95190.0,95185.0,0.01030494]
[1768630553078,0.0105053,95190.0,95186.0,0.01050574]
[1768630555463,0.01050519,95191.0,95187.0,0.01050563]
[1768630560585,0.01050541,95189.0,95185.0,0.01050585]
[1768630560780,0.0105053,95190.0,95186.0,0.01050574]
[1768630562014,0.0105053,95190.0,95187.0,0.01050563]
[1768630562451,0.01050519,95191.0,95187.0,0.01050563]
[1768630564458,0.0105053,95190.0,95186.0,0.01050574]
[1768630564881,0.01050541,95189.0,95185.0,0.01050585]
[1768630565737,0.01050552,95188.0,95184.0,0.01050596]
[1768630565959,0.0105053,95190.0,95188.0,0.00275586]
[1768630566846,0.06303196,95190.0,95188.0,0.00255496]
[1768630567712,0.0105053,95190.0,95188.0,0.00255496]
[1768630568157,0.06303184,95190.0,95188.0,0.00255496]
[1768630569377,0.06262958,95190.0,95188.0,0.00255496]
[1768630569788,0.0105064,95180.0,95174.0,0.01050707]
[1768630570033,0.00439316,95179.0,95175.0,0.01050696]
[1768630570849,0.05253215,95180.0,95175.0,0.01050696]
[1768630570850,0.0105064,95180.0,95176.0,0.01050685]
[1768630571060,0.01050651,95179.0,95175.0,0.01050696]
[1768630571265,0.01050651,95179.0,95174.0,0.01050707]
[1768630571266,0.01050662,95178.0,95174.0,0.01050707]
[1768630572743,0.01050651,95179.0,95175.0,0.01050696]
[1768630573159,0.01050629,95181.0,95176.0,0.01050685]
[1768630573358,0.01050629,95181.0,95176.0,0.06304064]
[1768630573793,0.01050607,95183.0,95178.0,0.01050662]
[1768630574445,0.01050607,95183.0,95179.0,0.01050651]
[1768630577273,0.01050596,95184.0,95180.0,0.0105064]
[1768630579418,0.01050629,95181.0,95177.0,0.01050674]
[1768630579820,0.01050618,95182.0,95178.0,0.01050662]
[1768630583803,0.01050618,95182.0,95177.0,0.01050674]
[1768630584559,0.0105064,95180.0,95176.0,0.01050685]
[1768630585320,0.01050618,95182.0,95177.0,0.06304028]
[1768630586448,0.0105064,95180.0,95175.0,0.01050696]
[1768630586654,0.0105064,95180.0,95169.0,0.21031051]
[1768630586655,0.01050696,95175.0,95170.0,0.06304507]
[1768630586863,0.01055429,95175.0,95170.0,0.06304507]
[1768630587085,4.733e-05,95175.0,95172.0,0.01050729]
[1768630587732,0.01055429,95175.0,95170.0,0.06304493]
[1768630588169,0.01050718,95173.0,95169.0,0.0001581]
[1768630588372,0.01050707,95174.0,95173.0,0.00275585]
[1768630589443,0.06304242,95174.0,95173.0,0.00275585]
[1768630590300,0.01050707,95174.0,95173.0,0.00275585]
[1768630591034,0.01055429,95175.0,95173.0,0.00275585]
[1768630591909,0.05253535,95174.0,95173.0,0.00275585]
[1768630592119,0.01055429,95175.0,95173.0,0.00275585]
[1768630593017,0.06308913,95175.0,95173.0,0.00275585]
[1768630594385,0.05253535,95174.0,95173.0,0.00275585]
[1768630595752,0.01055429,95175.0,95173.0,0.00275585]
[1768630595974,0.06308953,95175.0,95173.0,0.00275585]
[1768630598938,0.01055429,95175.0,95173.0,0.00275585]
[1768630599174,0.01055429,95175.0,95168.0,0.13778773]
[1768630599175,0.01050828,95163.0,95160.0,0.0001581]
[1768630599382,0.06304971,95163.0,95160.0,0.0001581]
[1768630599595,0.01050828,95163.0,95160.0,0.0001581]
[1768630599799,0.05254253,95161.0,95160.0,0.0001581]
[1768630600031,0.05951654,95163.0,95152.0,0.0105095]
[1768630600032,0.06305273,95159.0,95152.0,0.0105095]
[1768630600260,0.01050894,95157.0,95152.0,0.0105095]
[1768630600491,0.01050883,95158.0,95153.0,0.01050939]
[1768630600692,0.01050872,95159.0,95154.0,0.01050927]
[1768630601102,0.01050839,95162.0,95155.0,0.01050916]
[1768630601103,0.01050861,95160.0,95155.0,0.01050916]
[1768630601348,0.01050861,95160.0,95154.0,0.01050927]
[1768630602229,0.01050861,95160.0,95155.0,0.01050916]
[1768630602436,0.01050861,95160.0,95156.0,0.01050905]
[1768630603282,0.01050861,95160.0,95153.0,0.01050939]
[1768630603493,0.01050861,95160.0,95156.0,0.01050905]
[1768630604326,0.01050861,95160.0,95154.0,0.06305555]
[1768630604327,0.05254366,95159.0,95153.0,0.01050939]
[1768630604535,0.01050861,95160.0,95153.0,0.01050939]
[1768630604536,0.0595172,95157.0,95153.0,0.01050939]
[1768630604743,0.05254589,95155.0,95150.0,0.01088898]
[1768630604958,0.05254589,95155.0,95151.0,0.11763038]
[1768630605636,0.01050916,95155.0,95151.0,0.12813999]
[1768630605842,0.01050894,95157.0,95153.0,0.01050939]
[1768630606046,0.01050894,95157.0,95152.0,0.0105095]
[1768630606254,0.01050894,95157.0,95153.0,0.01050939]
[1768630606924,0.01050894,95157.0,95152.0,0.0105095]
[1768630607133,0.01050905,95156.0,95152.0,0.0105095]
[1768630607356,0.01050894,95157.0,95153.0,0.01050939]
[1768630607560,0.01050916,95155.0,95151.0,0.01050961]
[1768630607972,0.01050894,95157.0,95152.0,0.0105095]
[1768630608971,0.01050894,95157.0,95153.0,0.01050939]
[1768630611170,0.05951709,95158.0,95154.0,0.01050927]
[1768630612244,0.05951709,95158.0,95152.0,0.0105095]
[1768630612915,0.01050894,95157.0,95153.0,0.01050939]